[Event "Early-Titled-Tuesday-Blitz-February-13-2024"]
[Site "Chess.com"]
[Date "2024.02.13"]
[Round "6"]
[White "Oleksandr_Bortnyk"]
[Black "Igor_Lysyj"]
[Result "1-0"]
[WhiteElo "3072"]
[BlackElo "2856"]
[TimeControl "180+1"]
[EndTime "9:11:55 PST"]
[Termination "Oleksandr_Bortnyk won by checkmate"]

1. d4 {[%clk 0:02:54.8]} 1... d5 {[%clk 0:02:59.2]} 2. Nc3 {[%clk 0:02:53.9]}
2... Nf6 {[%clk 0:02:58]} 3. Bf4 {[%clk 0:02:54.5]} 3... c5 {[%clk 0:02:57.9]}
4. e4 {[%clk 0:02:54.5]} 4... Nxe4 {[%clk 0:02:56]} 5. Nxe4 {[%clk 0:02:54]}
5... dxe4 {[%clk 0:02:56.1]} 6. dxc5 {[%clk 0:02:54.9]} 6... Qa5+ {[%clk
0:02:55.5]} 7. c3 {[%clk 0:02:55.1]} 7... Qxc5 {[%clk 0:02:55.6]} 8. Qa4+ {[%clk
0:02:55.2]} 8... Nc6 {[%clk 0:02:55.7]} 9. Qxe4 {[%clk 0:02:55.5]} 9... g6
{[%clk 0:02:56]} 10. Nf3 {[%clk 0:02:55.8]} 10... Bg7 {[%clk 0:02:55.2]} 11. Rd1
{[%clk 0:02:56]} 11... Bf5 {[%clk 0:02:51.3]} 12. Qa4 {[%clk 0:02:55.1]} 12...
Qb6 {[%clk 0:02:51.4]} 13. Qa3 {[%clk 0:02:49.4]} 13... O-O {[%clk 0:02:50]} 14.
Bc4 {[%clk 0:02:45.5]} 14... h6 {[%clk 0:02:40.9]} 15. O-O {[%clk 0:02:44.9]}
15... Rfd8 {[%clk 0:02:40.5]} 16. h3 {[%clk 0:02:42.4]} 16... Be4 {[%clk
0:02:35.6]} 17. Nd2 {[%clk 0:02:40.4]} 17... Bc2 {[%clk 0:02:27.7]} 18. Rc1
{[%clk 0:02:34.5]} 18... Bd3 {[%clk 0:02:27.1]} 19. Rfe1 {[%clk 0:02:33]} 19...
Bxc4 {[%clk 0:02:24.2]} 20. Nxc4 {[%clk 0:02:33.9]} 20... Qb5 {[%clk 0:02:23.3]}
21. Qb3 {[%clk 0:02:20]} 21... Qxb3 {[%clk 0:02:22.7]} 22. axb3 {[%clk
0:02:20.9]} 22... b5 {[%clk 0:02:21.1]} 23. Ne3 {[%clk 0:02:13.7]} 23... e6
{[%clk 0:02:03.5]} 24. b4 {[%clk 0:02:08.8]} 24... a5 {[%clk 0:01:59.8]} 25.
bxa5 {[%clk 0:02:09.7]} 25... Nxa5 {[%clk 0:01:59.9]} 26. Rcd1 {[%clk
0:02:03.3]} 26... Nc6 {[%clk 0:01:56.7]} 27. Rxd8+ {[%clk 0:02:00]} 27... Rxd8
{[%clk 0:01:56.1]} 28. Ra1 {[%clk 0:02:00]} 28... b4 {[%clk 0:01:51.8]} 29. Ra6
{[%clk 0:01:55.6]} 29... Rc8 {[%clk 0:01:51.4]} 30. Nc4 {[%clk 0:01:43.9]} 30...
bxc3 {[%clk 0:01:49.6]} 31. bxc3 {[%clk 0:01:44.8]} 31... g5 {[%clk 0:01:29.7]}
32. Nd6 {[%clk 0:01:21.7]} 32... Rb8 {[%clk 0:01:25]} 33. Bg3 {[%clk 0:01:16.3]}
33... Ne5 {[%clk 0:01:19.8]} 34. Ra7 {[%clk 0:01:15.8]} 34... Rb1+ {[%clk
0:01:17.7]} 35. Kh2 {[%clk 0:01:15.8]} 35... Rc1 {[%clk 0:01:13.2]} 36. c4
{[%clk 0:01:12.1]} 36... h5 {[%clk 0:01:07.6]} 37. Ra5 {[%clk 0:01:03]} 37...
Nxc4 {[%clk 0:00:58.2]} 38. Rxg5 {[%clk 0:00:53.7]} 38... Nd2 {[%clk 0:00:47.7]}
39. h4 {[%clk 0:00:32.2]} 39... Nf1+ {[%clk 0:00:47.6]} 40. Kh3 {[%clk
0:00:32.6]} 40... Nxg3 {[%clk 0:00:47.1]} 41. Kxg3 {[%clk 0:00:33.5]} 41... Kf8
{[%clk 0:00:27.7]} 42. Rxh5 {[%clk 0:00:33.5]} 42... f5 {[%clk 0:00:24.1]} 43.
Nxf5 {[%clk 0:00:30.2]} 43... exf5 {[%clk 0:00:24.2]} 44. Rxf5+ {[%clk
0:00:31.1]} 44... Kg8 {[%clk 0:00:24.3]} 45. f4 {[%clk 0:00:28.3]} 45... Rc2
{[%clk 0:00:22.8]} 46. h5 {[%clk 0:00:27.9]} 46... Bh6 {[%clk 0:00:21.9]} 47.
Rf6 {[%clk 0:00:27.1]} 47... Kg7 {[%clk 0:00:22.2]} 48. Rg6+ {[%clk 0:00:27.5]}
48... Kh7 {[%clk 0:00:22.5]} 49. Kf3 {[%clk 0:00:27]} 49... Rc3+ {[%clk
0:00:21.9]} 50. Kg4 {[%clk 0:00:27.2]} 50... Rc4 {[%clk 0:00:20.1]} 51. g3
{[%clk 0:00:27.9]} 51... Rc7 {[%clk 0:00:20.3]} 52. Rb6 {[%clk 0:00:27.1]} 52...
Rg7+ {[%clk 0:00:20.1]} 53. Kf3 {[%clk 0:00:27.5]} 53... Rf7 {[%clk 0:00:20.5]}
54. Rb4 {[%clk 0:00:27.6]} 54... Rf8 {[%clk 0:00:20.3]} 55. g4 {[%clk
0:00:27.4]} 55... Rf7 {[%clk 0:00:19.4]} 56. Kg3 {[%clk 0:00:27.5]} 56... Bf8
{[%clk 0:00:18.7]} 57. Rc4 {[%clk 0:00:27.4]} 57... Bd6 {[%clk 0:00:16.2]} 58.
g5 {[%clk 0:00:27]} 58... Kg7 {[%clk 0:00:16.3]} 59. Kg4 {[%clk 0:00:26.7]}
59... Rc7 {[%clk 0:00:13.9]} 60. Rd4 {[%clk 0:00:26.4]} 60... Bc5 {[%clk
0:00:14]} 61. h6+ {[%clk 0:00:25]} 61... Kh7 {[%clk 0:00:14.1]} 62. Rd8 {[%clk
0:00:25.1]} 62... Be3 {[%clk 0:00:14.1]} 63. f5 {[%clk 0:00:19.2]} 63... Rc1
{[%clk 0:00:09.8]} 64. Rd7+ {[%clk 0:00:16.7]} 64... Kg8 {[%clk 0:00:10.1]} 65.
h7+ {[%clk 0:00:15.8]} 65... Kh8 {[%clk 0:00:09.8]} 66. g6 {[%clk 0:00:16.7]}
66... Rc8 {[%clk 0:00:08.4]} 67. f6 {[%clk 0:00:14.6]} 67... Bc1 {[%clk
0:00:07.4]} 68. Rd1 {[%clk 0:00:10.2]} 68... Bb2 {[%clk 0:00:06.6]} 69. Rf1
{[%clk 0:00:07]} 69... Bxf6 {[%clk 0:00:06.4]} 70. Rxf6 {[%clk 0:00:07.9]} 70...
Kg7 {[%clk 0:00:06.9]} 71. Rd6 {[%clk 0:00:06.2]} 71... Rc4+ {[%clk 0:00:05.8]}
72. Kf5 {[%clk 0:00:06.4]} 72... Rc5+ {[%clk 0:00:06.2]} 73. Kf4 {[%clk
0:00:06.8]} 73... Rc4+ {[%clk 0:00:06.1]} 74. Ke5 {[%clk 0:00:07.5]} 74... Rc5+
{[%clk 0:00:06.3]} 75. Rd5 {[%clk 0:00:08.2]} 75... Rc8 {[%clk 0:00:06.4]} 76.
Kf5 {[%clk 0:00:07.8]} 76... Rc7 {[%clk 0:00:06.7]} 77. Kg5 {[%clk 0:00:07.3]}
77... Rb7 {[%clk 0:00:04.3]} 78. Rf5 {[%clk 0:00:07.2]} 78... Kh8 {[%clk
0:00:02.9]} 79. Rf8+ {[%clk 0:00:07.1]} 79... Kg7 {[%clk 0:00:03.4]} 80. h8=Q#
{[%clk 0:00:08]} 1-0

[Event "Early-Titled-Tuesday-Blitz-February-13-2024"]
[Site "Chess.com"]
[Date "2024.02.13"]
[Round "6"]
[White "Lady_Nika"]
[Black "theoneandonlydaaevik"]
[Result "0-1"]
[WhiteElo "2595"]
[BlackElo "2511"]
[TimeControl "180+1"]
[EndTime "9:12:03 PST"]
[Termination "theoneandonlydaaevik won by resignation"]

1. d4 {[%clk 0:03:00.9]} 1... d5 {[%clk 0:02:57.1]} 2. e3 {[%clk 0:03:01.1]}
2... Nf6 {[%clk 0:02:57.3]} 3. f4 {[%clk 0:03:01.2]} 3... c5 {[%clk 0:02:36.1]}
4. Nf3 {[%clk 0:03:01.1]} 4... Bg4 {[%clk 0:02:36.6]} 5. c3 {[%clk 0:03:01]}
5... Nc6 {[%clk 0:02:36.9]} 6. Be2 {[%clk 0:02:59.6]} 6... e6 {[%clk 0:02:36.4]}
7. Ne5 {[%clk 0:02:59.8]} 7... Bxe2 {[%clk 0:02:34.2]} 8. Qxe2 {[%clk
0:03:00.7]} 8... Bd6 {[%clk 0:02:32.7]} 9. O-O {[%clk 0:03:00.1]} 9... Ne4
{[%clk 0:02:17.7]} 10. Nd2 {[%clk 0:02:59.7]} 10... Nxd2 {[%clk 0:02:12.7]} 11.
Bxd2 {[%clk 0:02:58.8]} 11... O-O {[%clk 0:02:03.9]} 12. Nxc6 {[%clk 0:02:58]}
12... bxc6 {[%clk 0:02:04]} 13. e4 {[%clk 0:02:58.3]} 13... cxd4 {[%clk
0:02:01.7]} 14. cxd4 {[%clk 0:02:56.6]} 14... dxe4 {[%clk 0:01:48.8]} 15. Qxe4
{[%clk 0:02:55.6]} 15... Be7 {[%clk 0:01:49.5]} 16. f5 {[%clk 0:02:52.1]} 16...
c5 {[%clk 0:01:35.6]} 17. Bc3 {[%clk 0:02:46.7]} 17... Bf6 {[%clk 0:01:29.5]}
18. dxc5 {[%clk 0:02:42.9]} 18... Bxc3 {[%clk 0:01:29.6]} 19. bxc3 {[%clk
0:02:43.1]} 19... exf5 {[%clk 0:01:17.9]} 20. Rxf5 {[%clk 0:02:41.8]} 20... Rc8
{[%clk 0:01:18.4]} 21. Raf1 {[%clk 0:02:40.9]} 21... Qd2 {[%clk 0:01:08.7]} 22.
Qc4 {[%clk 0:02:35.9]} 22... Rc7 {[%clk 0:01:01.4]} 23. c6 {[%clk 0:02:34.2]}
23... Qd6 {[%clk 0:00:59.8]} 24. Rc5 {[%clk 0:02:25.9]} 24... Rfc8 {[%clk
0:00:59.6]} 25. a4 {[%clk 0:02:22.5]} 25... Qe6 {[%clk 0:00:59.4]} 26. Rd1
{[%clk 0:02:05.7]} 26... Qe3+ {[%clk 0:00:28.2]} 27. Kh1 {[%clk 0:02:04.1]}
27... h6 {[%clk 0:00:28.8]} 28. h3 {[%clk 0:01:53.5]} 28... Kh7 {[%clk
0:00:13.2]} 29. Rd6 {[%clk 0:01:39.3]} 29... Re7 {[%clk 0:00:04.7]} 30. Qd4
{[%clk 0:01:25.2]} 30... Qg3 {[%clk 0:00:02.7]} 31. Qd3+ {[%clk 0:01:19.3]}
31... Qxd3 {[%clk 0:00:02.6]} 32. Rxd3 {[%clk 0:01:19.8]} 32... Re6 {[%clk
0:00:02.6]} 33. c7 {[%clk 0:01:19.5]} 33... Re7 {[%clk 0:00:02.9]} 34. Rd8
{[%clk 0:01:19.5]} 34... Rcxc7 {[%clk 0:00:03.3]} 35. Rdd5 {[%clk 0:01:11.3]}
35... g6 {[%clk 0:00:02.1]} 36. Kg1 {[%clk 0:01:10.2]} 36... Kg7 {[%clk
0:00:01.4]} 37. a5 {[%clk 0:01:09.6]} 37... Kf6 {[%clk 0:00:02.3]} 38. a6 {[%clk
0:01:09.3]} 38... Rxc5 {[%clk 0:00:02.3]} 39. Rxc5 {[%clk 0:01:09.4]} 39... Re6
{[%clk 0:00:03.2]} 40. Ra5 {[%clk 0:01:08.8]} 40... Rc6 {[%clk 0:00:03.4]} 41.
Ra3 {[%clk 0:01:08.3]} 41... Ke5 {[%clk 0:00:03.4]} 42. Kf2 {[%clk 0:01:08.7]}
42... Kd5 {[%clk 0:00:03.5]} 43. Ke2 {[%clk 0:01:08.5]} 43... Kc4 {[%clk
0:00:03.5]} 44. Kd2 {[%clk 0:01:06.8]} 44... Kb5 {[%clk 0:00:03.6]} 45. Kd3
{[%clk 0:01:00.4]} 45... Rxa6 {[%clk 0:00:02]} 46. c4+ {[%clk 0:01:00.5]} 46...
Kb6 {[%clk 0:00:02.7]} 47. Rb3+ {[%clk 0:00:51.8]} 47... Kc5 {[%clk 0:00:02.8]}
48. Rb5+ {[%clk 0:00:51.7]} 48... Kc6 {[%clk 0:00:03.3]} 49. Kd4 {[%clk
0:00:50.8]} 49... Ra3 {[%clk 0:00:03.8]} 50. Rc5+ {[%clk 0:00:50.1]} 50... Kd6
{[%clk 0:00:03.5]} 51. Rd5+ {[%clk 0:00:48.6]} 51... Kc7 {[%clk 0:00:03.8]} 52.
Re5 {[%clk 0:00:48.4]} 52... Kd6 {[%clk 0:00:02.3]} 53. Re8 {[%clk 0:00:48.5]}
53... Ra2 {[%clk 0:00:01.9]} 54. g4 {[%clk 0:00:46.4]} 54... Rd2+ {[%clk
0:00:01.4]} 55. Kc3 {[%clk 0:00:45.5]} 55... Rh2 {[%clk 0:00:02.1]} 56. Re3
{[%clk 0:00:43.4]} 56... f5 {[%clk 0:00:02]} 57. gxf5 {[%clk 0:00:43.2]} 57...
gxf5 {[%clk 0:00:02.9]} 58. Kd4 {[%clk 0:00:41.9]} 58... f4 {[%clk 0:00:02.2]}
59. c5+ {[%clk 0:00:41.6]} 59... Kc6 {[%clk 0:00:02.3]} 60. Re6+ {[%clk
0:00:41.7]} 60... Kd7 {[%clk 0:00:02.7]} 61. Rxh6 {[%clk 0:00:42]} 61... f3
{[%clk 0:00:02.9]} 62. Kd5 {[%clk 0:00:42.1]} 62... Rd2+ {[%clk 0:00:01.1]} 63.
Ke4 {[%clk 0:00:39.7]} 63... f2 {[%clk 0:00:02]} 64. c6+ {[%clk 0:00:39]} 64...
Kc7 {[%clk 0:00:02.1]} 65. Rf6 {[%clk 0:00:39.1]} 65... Rc2 {[%clk 0:00:02.6]}
66. Ke3 {[%clk 0:00:37.8]} 66... a5 {[%clk 0:00:02.6]} 67. Rf3 {[%clk
0:00:20.6]} 67... Rc3+ {[%clk 0:00:02.1]} 68. Kxf2 {[%clk 0:00:20.4]} 68...
Rxf3+ {[%clk 0:00:03]} 69. Kxf3 {[%clk 0:00:21.3]} 69... a4 {[%clk 0:00:03.9]}
70. Kg4 {[%clk 0:00:09.2]} 70... a3 {[%clk 0:00:04.8]} 71. Kg5 {[%clk
0:00:10.1]} 71... a2 {[%clk 0:00:05.7]} 72. Kg6 {[%clk 0:00:10.6]} 72... a1=Q
{[%clk 0:00:06.6]} 73. h4 {[%clk 0:00:10.8]} 73... Qh8 {[%clk 0:00:06.1]} 0-1

[Event "Early-Titled-Tuesday-Blitz-February-13-2024"]
[Site "Chess.com"]
[Date "2024.02.13"]
[Round "6"]
[White "secretsuperstar7"]
[Black "dealshark"]
[Result "1-0"]
[WhiteElo "2519"]
[BlackElo "2295"]
[TimeControl "180+1"]
[EndTime "9:12:06 PST"]
[Termination "secretsuperstar7 won by checkmate"]

1. c4 {[%clk 0:02:55.9]} 1... Nf6 {[%clk 0:02:58.2]} 2. Nc3 {[%clk 0:02:55.4]}
2... d5 {[%clk 0:02:58.4]} 3. cxd5 {[%clk 0:02:52.5]} 3... Nxd5 {[%clk
0:02:58.1]} 4. d4 {[%clk 0:02:46.7]} 4... c5 {[%clk 0:02:57.8]} 5. e4 {[%clk
0:02:45.3]} 5... Nxc3 {[%clk 0:02:57.6]} 6. bxc3 {[%clk 0:02:45.5]} 6... e6
{[%clk 0:02:51.5]} 7. Nf3 {[%clk 0:02:44.3]} 7... Nc6 {[%clk 0:02:51.3]} 8. d5
{[%clk 0:02:32]} 8... exd5 {[%clk 0:02:44.9]} 9. exd5 {[%clk 0:02:32]} 9... Nb8
{[%clk 0:02:41.1]} 10. Bd3 {[%clk 0:02:23.8]} 10... Be7 {[%clk 0:02:37.1]} 11.
O-O {[%clk 0:02:22]} 11... Bg4 {[%clk 0:02:34.2]} 12. Bb5+ {[%clk 0:02:17.4]}
12... Nd7 {[%clk 0:02:33.6]} 13. d6 {[%clk 0:02:14.3]} 13... Bf6 {[%clk
0:02:33.7]} 14. Re1+ {[%clk 0:02:13.2]} 14... Kf8 {[%clk 0:02:28]} 15. Bd2
{[%clk 0:02:02.2]} 15... a6 {[%clk 0:02:26.4]} 16. Be2 {[%clk 0:01:57.9]} 16...
h5 {[%clk 0:02:26.1]} 17. h3 {[%clk 0:01:57]} 17... Bf5 {[%clk 0:02:22.5]} 18.
Qb3 {[%clk 0:01:51.1]} 18... b5 {[%clk 0:02:13.8]} 19. a4 {[%clk 0:01:42.1]}
19... Be6 {[%clk 0:02:09.7]} 20. Qc2 {[%clk 0:01:35.3]} 20... b4 {[%clk
0:02:06.3]} 21. Rab1 {[%clk 0:01:18.4]} 21... b3 {[%clk 0:02:05.8]} 22. Qe4
{[%clk 0:01:15.3]} 22... Rb8 {[%clk 0:02:00.8]} 23. Bxa6 {[%clk 0:01:13.5]}
23... g6 {[%clk 0:01:33.8]} 24. c4 {[%clk 0:00:59.9]} 24... Bf5 {[%clk
0:01:32.5]} 25. Qe2 {[%clk 0:00:46.1]} 25... Bxb1 {[%clk 0:01:31.6]} 26. Rxb1
{[%clk 0:00:47]} 26... Kg7 {[%clk 0:01:28.7]} 27. Bb5 {[%clk 0:00:41.5]} 27...
Re8 {[%clk 0:01:27.5]} 28. Qd3 {[%clk 0:00:40.2]} 28... Re6 {[%clk 0:01:18.3]}
29. Rxb3 {[%clk 0:00:36.4]} 29... Ne5 {[%clk 0:01:12.3]} 30. Nxe5 {[%clk
0:00:31.8]} 30... Rxd6 {[%clk 0:01:01.4]} 31. Qg3 {[%clk 0:00:08.8]} 31... Rxd2
{[%clk 0:00:56.4]} 32. Nc6 {[%clk 0:00:08.7]} 32... Rd1+ {[%clk 0:00:56.6]} 33.
Kh2 {[%clk 0:00:08.7]} 33... h4 {[%clk 0:00:30.1]} 34. Qxb8 {[%clk 0:00:05.6]}
34... Qxb8+ {[%clk 0:00:28.8]} 35. Nxb8 {[%clk 0:00:06.5]} 35... Be5+ {[%clk
0:00:29.2]} 36. g3 {[%clk 0:00:07.1]} 36... hxg3+ {[%clk 0:00:29.2]} 37. fxg3
{[%clk 0:00:07.4]} 37... Rd2+ {[%clk 0:00:29.4]} 38. Kg1 {[%clk 0:00:07.1]}
38... Bxb8 {[%clk 0:00:29.2]} 39. a5 {[%clk 0:00:07.5]} 39... Ra2 {[%clk
0:00:27.5]} 40. a6 {[%clk 0:00:07.7]} 40... Be5 {[%clk 0:00:23.2]} 41. Rd3
{[%clk 0:00:04.5]} 41... Bd4+ {[%clk 0:00:23.3]} 42. Kf1 {[%clk 0:00:04.6]}
42... Kf6 {[%clk 0:00:22.4]} 43. Rf3+ {[%clk 0:00:04.2]} 43... Ke7 {[%clk
0:00:21.4]} 44. Rf4 {[%clk 0:00:03.4]} 44... Ra1+ {[%clk 0:00:19.9]} 45. Ke2
{[%clk 0:00:03.3]} 45... Ra2+ {[%clk 0:00:20]} 46. Kf3 {[%clk 0:00:03.8]} 46...
Ra3+ {[%clk 0:00:20.1]} 47. Kg2 {[%clk 0:00:03.9]} 47... f6 {[%clk 0:00:17.7]}
48. Rf3 {[%clk 0:00:03.9]} 48... Ra2+ {[%clk 0:00:17.9]} 49. Kf1 {[%clk
0:00:04.3]} 49... Kd6 {[%clk 0:00:17]} 50. Rd3 {[%clk 0:00:04.2]} 50... Ra1+
{[%clk 0:00:13.2]} 51. Kg2 {[%clk 0:00:04]} 51... Ra2+ {[%clk 0:00:10.5]} 52.
Kf1 {[%clk 0:00:03.7]} 52... Ra1+ {[%clk 0:00:09.7]} 53. Ke2 {[%clk 0:00:04.2]}
53... Ra2+ {[%clk 0:00:09.9]} 54. Rd2 {[%clk 0:00:04.5]} 54... Ra3 {[%clk
0:00:09.5]} 55. Rd3 {[%clk 0:00:03.3]} 55... Ra2+ {[%clk 0:00:09.7]} 56. Kf3
{[%clk 0:00:03.3]} 56... f5 {[%clk 0:00:09.3]} 57. g4 {[%clk 0:00:03]} 57...
Rf2+ {[%clk 0:00:07.4]} 58. Kg3 {[%clk 0:00:03.2]} 58... f4+ {[%clk 0:00:07.5]}
59. Kh4 {[%clk 0:00:02.3]} 59... Rg2 {[%clk 0:00:05.9]} 60. g5 {[%clk 0:00:02]}
60... Ke5 {[%clk 0:00:04.8]} 61. a7 {[%clk 0:00:02]} 61... Ra2 {[%clk 0:00:04]}
62. Bc6 {[%clk 0:00:02.1]} 62... Rxa7 {[%clk 0:00:04.2]} 63. Kg4 {[%clk
0:00:02.3]} 63... f3 {[%clk 0:00:03.6]} 64. Rxf3 {[%clk 0:00:02.1]} 64... Re7
{[%clk 0:00:03.9]} 65. Bd5 {[%clk 0:00:02.3]} 65... Kd6 {[%clk 0:00:04.2]} 66.
Rf6+ {[%clk 0:00:02.5]} 66... Bxf6 {[%clk 0:00:03.7]} 67. gxf6 {[%clk
0:00:02.6]} 67... Re8 {[%clk 0:00:03.9]} 68. f7 {[%clk 0:00:02.8]} 68... Rf8
{[%clk 0:00:04.4]} 69. Kg5 {[%clk 0:00:03.3]} 69... Ke7 {[%clk 0:00:05.2]} 70.
Kxg6 {[%clk 0:00:03.8]} 70... Rxf7 {[%clk 0:00:05.5]} 71. Bxf7 {[%clk
0:00:03.5]} 71... Kd6 {[%clk 0:00:06.4]} 72. Bd5 {[%clk 0:00:03.8]} 72... Ke5
{[%clk 0:00:07.3]} 73. h4 {[%clk 0:00:04.3]} 73... Kd4 {[%clk 0:00:08.2]} 74. h5
{[%clk 0:00:04.9]} 74... Kc3 {[%clk 0:00:08.7]} 75. h6 {[%clk 0:00:05.5]} 75...
Kb4 {[%clk 0:00:09.6]} 76. h7 {[%clk 0:00:06]} 76... Kc3 {[%clk 0:00:10.5]} 77.
h8=Q+ {[%clk 0:00:06.5]} 77... Kb4 {[%clk 0:00:10.7]} 78. Qc8 {[%clk 0:00:07.1]}
78... Ka4 {[%clk 0:00:11.4]} 79. Qxc5 {[%clk 0:00:06.8]} 79... Kb3 {[%clk
0:00:12.3]} 80. Qc8 {[%clk 0:00:07.1]} 80... Ka2 {[%clk 0:00:13.2]} 81. c5+
{[%clk 0:00:07.6]} 81... Kb2 {[%clk 0:00:14.1]} 82. c6 {[%clk 0:00:08.1]} 82...
Ka1 {[%clk 0:00:15]} 83. c7 {[%clk 0:00:08.6]} 83... Kb1 {[%clk 0:00:15.9]} 84.
Qb8+ {[%clk 0:00:08.9]} 84... Ka1 {[%clk 0:00:16.8]} 85. Qa7+ {[%clk 0:00:09]}
85... Kb2 {[%clk 0:00:16.6]} 86. c8=Q {[%clk 0:00:08.2]} 86... Kb1 {[%clk
0:00:16.9]} 87. Qcb8+ {[%clk 0:00:08.7]} 87... Kc2 {[%clk 0:00:16.9]} 88. Qc5+
{[%clk 0:00:08.7]} 88... Kd3 {[%clk 0:00:17.4]} 89. Qg3+ {[%clk 0:00:08.5]}
89... Ke2 {[%clk 0:00:17.8]} 90. Qce3+ {[%clk 0:00:08.6]} 90... Kf1 {[%clk
0:00:18]} 91. Qef2# {[%clk 0:00:08.6]} 1-0

[Event "Early-Titled-Tuesday-Blitz-February-13-2024"]
[Site "Chess.com"]
[Date "2024.02.13"]
[Round "6"]
[White "FredddieCroderg"]
[Black "VinzentSpitzl"]
[Result "1/2-1/2"]
[WhiteElo "2324"]
[BlackElo "2508"]
[TimeControl "180+1"]
[EndTime "9:12:06 PST"]
[Termination "Game drawn by repetition"]

1. e4 {[%clk 0:03:00.9]} 1... c5 {[%clk 0:02:59]} 2. Bc4 {[%clk 0:02:59.4]} 2...
Nc6 {[%clk 0:02:47.9]} 3. Qf3 {[%clk 0:03:00.3]} 3... e6 {[%clk 0:02:46.5]} 4.
d3 {[%clk 0:02:59.5]} 4... Nge7 {[%clk 0:02:41.1]} 5. Nc3 {[%clk 0:02:58.1]}
5... a6 {[%clk 0:02:37.9]} 6. Nge2 {[%clk 0:02:55.7]} 6... b5 {[%clk 0:02:37.3]}
7. Bb3 {[%clk 0:02:55]} 7... g6 {[%clk 0:02:33.2]} 8. a4 {[%clk 0:02:53.1]} 8...
b4 {[%clk 0:02:31.5]} 9. Nd1 {[%clk 0:02:53]} 9... Bg7 {[%clk 0:02:31.2]} 10.
Ne3 {[%clk 0:02:48.7]} 10... O-O {[%clk 0:02:30.3]} 11. h4 {[%clk 0:02:47.7]}
11... Nd4 {[%clk 0:02:06.7]} 12. Nxd4 {[%clk 0:02:45]} 12... cxd4 {[%clk
0:02:07.6]} 13. Ng4 {[%clk 0:02:42.6]} 13... f5 {[%clk 0:02:07.4]} 14. Nh6+
{[%clk 0:02:39.1]} 14... Kh8 {[%clk 0:02:07.2]} 15. h5 {[%clk 0:02:37.3]} 15...
Bb7 {[%clk 0:01:50.9]} 16. hxg6 {[%clk 0:02:32.4]} 16... Nxg6 {[%clk 0:01:48]}
17. Qh3 {[%clk 0:02:21.3]} 17... Be5 {[%clk 0:01:18.3]} 18. exf5 {[%clk
0:02:11.1]} 18... Nf4 {[%clk 0:01:12.9]} 19. Bxf4 {[%clk 0:02:04.8]} 19... Bxf4
{[%clk 0:01:13.3]} 20. Ng4 {[%clk 0:01:40.3]} 20... Rf7 {[%clk 0:01:05.9]} 21.
fxe6 {[%clk 0:01:39.9]} 21... dxe6 {[%clk 0:01:05.9]} 22. Qh5 {[%clk 0:01:37.4]}
22... Qe7 {[%clk 0:00:50.6]} 23. Ne5 {[%clk 0:01:24.6]} 23... Bxe5 {[%clk
0:00:47.6]} 24. Qxe5+ {[%clk 0:01:24.1]} 24... Qf6 {[%clk 0:00:47]} 25. Qxf6+
{[%clk 0:01:14]} 25... Rxf6 {[%clk 0:00:47.9]} 26. O-O-O {[%clk 0:01:13.5]}
26... Bxg2 {[%clk 0:00:47.1]} 27. Rh2 {[%clk 0:01:10.9]} 27... Bf3 {[%clk
0:00:28.3]} 28. Re1 {[%clk 0:01:10.8]} 28... Rg8 {[%clk 0:00:28.7]} 29. Kb1
{[%clk 0:00:59]} 29... Rgg6 {[%clk 0:00:22.3]} 30. Ka2 {[%clk 0:00:57]} 30... h5
{[%clk 0:00:20.1]} 31. Bc4 {[%clk 0:00:56]} 31... a5 {[%clk 0:00:19.3]} 32. Kb3
{[%clk 0:00:56]} 32... Kg7 {[%clk 0:00:15.5]} 33. Re5 {[%clk 0:00:55.7]} 33...
Rf5 {[%clk 0:00:12.7]} 34. Rxe6 {[%clk 0:00:53.3]} 34... Rxe6 {[%clk 0:00:12.2]}
35. Bxe6 {[%clk 0:00:53.2]} 35... Rg5 {[%clk 0:00:11.4]} 36. Kc4 {[%clk
0:00:50.1]} 36... Kf6 {[%clk 0:00:11.4]} 37. Bd7 {[%clk 0:00:44.6]} 37... Ke7
{[%clk 0:00:11.4]} 38. Bb5 {[%clk 0:00:42.7]} 38... Kd6 {[%clk 0:00:11.4]} 39.
Kxd4 {[%clk 0:00:42.6]} 39... Rg2 {[%clk 0:00:09.8]} 40. Rxg2 {[%clk 0:00:19.8]}
40... Bxg2 {[%clk 0:00:09.9]} 41. Ke3 {[%clk 0:00:20.4]} 41... Bf1 {[%clk
0:00:05.9]} 42. f4 {[%clk 0:00:18.9]} 42... h4 {[%clk 0:00:06]} 43. Kf2 {[%clk
0:00:18.4]} 43... Bh3 {[%clk 0:00:06.6]} 44. c3 {[%clk 0:00:15.5]} 44... b3
{[%clk 0:00:03.6]} 45. d4 {[%clk 0:00:14.3]} 45... Bf5 {[%clk 0:00:03.4]} 46.
Bf1 {[%clk 0:00:13]} 46... Kd5 {[%clk 0:00:02.9]} 47. Ke3 {[%clk 0:00:12.2]}
47... h3 {[%clk 0:00:02.5]} 48. c4+ {[%clk 0:00:12.4]} 48... Kd6 {[%clk
0:00:01.8]} 49. Kf2 {[%clk 0:00:12.3]} 49... Bg4 {[%clk 0:00:01.6]} 50. Kg3
{[%clk 0:00:12.3]} 50... Bf5 {[%clk 0:00:02.5]} 51. Bxh3 {[%clk 0:00:12.2]}
51... Bd3 {[%clk 0:00:02.2]} 52. c5+ {[%clk 0:00:09.6]} 52... Kd5 {[%clk
0:00:02.7]} 53. Bg2+ {[%clk 0:00:09]} 53... Kxd4 {[%clk 0:00:03.1]} 54. c6
{[%clk 0:00:09.2]} 54... Ba6 {[%clk 0:00:03]} 55. c7 {[%clk 0:00:09.2]} 55...
Ke3 {[%clk 0:00:02.7]} 56. Bh3 {[%clk 0:00:09]} 56... Kd2 {[%clk 0:00:03]} 57.
c8=Q {[%clk 0:00:08.8]} 57... Bxc8 {[%clk 0:00:03.5]} 58. Bxc8 {[%clk
0:00:08.9]} 58... Kc2 {[%clk 0:00:04.4]} 59. Be6 {[%clk 0:00:09.2]} 59... Kxb2
{[%clk 0:00:04.8]} 60. Bxb3 {[%clk 0:00:09]} 60... Kxb3 {[%clk 0:00:05.7]} 61.
f5 {[%clk 0:00:09.4]} 61... Kxa4 {[%clk 0:00:06.6]} 62. f6 {[%clk 0:00:10]}
62... Kb3 {[%clk 0:00:07.5]} 63. f7 {[%clk 0:00:10.7]} 63... a4 {[%clk
0:00:08.4]} 64. f8=Q {[%clk 0:00:10.9]} 64... a3 {[%clk 0:00:09.3]} 65. Qf3+
{[%clk 0:00:10.7]} 65... Kb2 {[%clk 0:00:09.7]} 66. Qe2+ {[%clk 0:00:10.7]}
66... Kb1 {[%clk 0:00:09.7]} 67. Qd1+ {[%clk 0:00:10.3]} 67... Kb2 {[%clk
0:00:10.1]} 68. Qd2+ {[%clk 0:00:10.5]} 68... Kb1 {[%clk 0:00:10.4]} 69. Qd3+
{[%clk 0:00:10.6]} 69... Kb2 {[%clk 0:00:10.7]} 70. Qb5+ {[%clk 0:00:10.7]}
70... Ka1 {[%clk 0:00:10.3]} 71. Qe5+ {[%clk 0:00:08.1]} 71... Kb1 {[%clk
0:00:10.1]} 72. Qe4+ {[%clk 0:00:07.2]} 72... Kb2 {[%clk 0:00:10.3]} 73. Qd4+
{[%clk 0:00:07.3]} 73... Kb1 {[%clk 0:00:10.6]} 74. Qd3+ {[%clk 0:00:07.3]}
74... Kb2 {[%clk 0:00:10.3]} 75. Qb5+ {[%clk 0:00:07.2]} 75... Ka1 {[%clk
0:00:09.9]} 76. Qf1+ {[%clk 0:00:06.9]} 76... Kb2 {[%clk 0:00:08.7]} 77. Qe2+
{[%clk 0:00:06.8]} 77... Kb1 {[%clk 0:00:08.5]} 78. Qd1+ {[%clk 0:00:06.9]}
78... Kb2 {[%clk 0:00:07]} 79. Qd2+ {[%clk 0:00:07.1]} 79... Kb1 {[%clk
0:00:06.1]} 80. Qd3+ {[%clk 0:00:06.7]} 1/2-1/2